bitfinex-derivatives/quotes_BTCF0:USTF0_20260119
["timestamp","ask_amount","ask_price","bid_price","bid_amount"]
[1768788647866,0.00016212,92490.0,92476.0,0.010818]
[1768788648365,0.00016212,92490.0,92475.0,0.00983131]
[1768788649360,0.00016212,92490.0,92476.0,0.010818]
[1768788649667,0.00016212,92490.0,92475.0,0.00983131]
[1768788649668,0.00016212,92490.0,92482.0,0.00983131]
[1768788649968,0.09732,92495.0,92482.0,0.00983131]
[1768788650357,0.108136,92495.0,92481.0,0.09332341]
[1768788650557,0.108136,92495.0,92479.0,0.010818]
[1768788650768,0.108136,92495.0,92479.0,0.02064931]
[1768788650962,0.108136,92495.0,92479.0,0.00983131]
[1768788651472,0.09732,92495.0,92480.0,0.010818]
[1768788652171,0.09732,92495.0,92482.0,0.02064831]
[1768788652573,0.09732,92495.0,92483.0,0.0090963]
[1768788652776,0.010816,92494.0,92478.0,0.0090963]
[1768788652969,0.010816,92494.0,92479.0,0.0090963]
[1768788653165,0.09732,92495.0,92480.0,0.0090963]
[1768788653365,0.09732,92495.0,92481.0,0.010817]
[1768788654076,0.00016212,92496.0,92485.0,0.0090963]
[1768788654278,0.09736,92501.0,92486.0,0.0090963]
[1768788654574,0.108175,92501.0,92486.0,0.0090963]
[1768788655571,0.108175,92501.0,92482.0,0.0199133]
[1768788656477,0.02380405,92500.0,92482.0,0.0199133]
[1768788656679,0.02380405,92499.0,92484.0,0.010817]
[1768788656872,0.02380405,92498.0,92484.0,0.010817]
[1768788657075,0.02380405,92497.0,92484.0,0.010817]
[1768788657278,0.02380405,92496.0,92484.0,0.010817]
[1768788657478,0.010815,92500.0,92484.0,0.010817]
[1768788657672,0.02380613,92499.0,92489.0,0.0090963]
[1768788657875,0.010814,92507.0,92491.0,0.0199123]
[1768788658381,0.010815,92505.0,92491.0,0.0090963]
[1768788658570,0.010814,92508.0,92491.0,0.0090963]
[1768788658879,0.010815,92506.0,92491.0,0.0090963]
[1768788659474,0.09736,92509.0,92491.0,0.0090963]
[1768788660179,0.09736,92509.0,92489.0,0.10119594]
[1768788660371,0.010815,92506.0,92490.0,0.0090963]
[1768788660679,0.010815,92504.0,92490.0,0.0090963]
[1768788660869,0.010815,92504.0,92490.0,0.15507805]
[1768788661070,0.010815,92502.0,92486.0,0.0090963]
[1768788661275,0.00239999,92494.0,92479.0,0.00016212]
[1768788661580,0.0931549,92507.0,92483.0,0.010817]
[1768788661775,0.0931549,92507.0,92484.0,0.0090963]
[1768788661977,0.0931549,92505.0,92480.0,0.15507805]
[1768788662182,0.010816,92497.0,92480.0,0.0090963]
[1768788662382,0.010816,92497.0,92481.0,0.010817]
[1768788662579,0.15679675,92500.0,92481.0,0.010817]
[1768788662781,0.15679675,92500.0,92479.0,0.00016212]
[1768788662782,0.1039709,92496.0,92479.0,0.00016212]
[1768788662973,0.010816,92491.0,92479.0,0.00016212]
[1768788663169,0.1039709,92491.0,92479.0,0.00016212]
[1768788663381,0.010816,92494.0,92479.0,0.00016212]
[1768788663676,0.0025319,92496.0,92479.0,1.2e-07]
[1768788663877,0.010817,92482.0,92479.0,1.2e-07]
[1768788664082,0.010817,92485.0,92474.0,0.09736]
[1768788664382,0.0025319,92488.0,92473.0,0.0001]
[1768788664577,0.0931549,92489.0,92459.0,0.09736]
[1768788664578,0.010819,92472.0,92459.0,0.09736]
[1768788664784,0.10654189,92472.0,92459.0,0.09736]
[1768788665875,0.0931549,92472.0,92459.0,0.09736]
[1768788666278,0.00016222,92475.0,92459.0,0.09736]
[1768788667178,0.010818,92474.0,92459.0,0.09736]
[1768788667380,0.010819,92465.0,92458.0,0.00026189]
[1768788667685,0.010819,92465.0,92449.0,0.09736]
[1768788668276,0.010819,92468.0,92449.0,0.11152342]
[1768788668572,9.967e-05,92467.0,92449.0,0.11152342]
[1768788668874,0.01082,92463.0,92447.0,0.01416762]
[1768788669979,0.0931549,92465.0,92444.0,0.00237982]
[1768788670186,0.01082,92458.0,92444.0,0.00237982]
[1768788670680,0.01082,92456.0,92444.0,0.00237982]
[1768788670875,0.1039749,92456.0,92436.0,0.010823]
[1768788671076,0.1039749,92456.0,92436.0,0.03385036]
[1768788671282,0.0931549,92456.0,92438.0,0.010822]
[1768788671588,0.00016222,92455.0,92438.0,0.02449816]
[1768788674381,0.00016222,92455.0,92438.0,0.01367616]
[1768788674586,0.00016222,92455.0,92436.0,0.0090963]
[1768788674785,0.010822,92441.0,92431.0,0.0090963]
[1768788674988,0.00016222,92455.0,92431.0,0.01393106]
[1768788674989,7.907e-05,92440.0,92431.0,0.01393106]
[1768788675288,7.907e-05,92440.0,92429.0,0.00238022]
[1768788675480,7.907e-05,92440.0,92438.0,0.01393106]
[1768788675889,7.907e-05,92440.0,92429.0,0.00238022]
[1768788675890,7.907e-05,92440.0,92439.0,0.01393106]
[1768788676086,7.907e-05,92440.0,92438.0,0.01393106]
[1768788676588,7.907e-05,92440.0,92439.0,0.01393106]
[1768788676789,7.907e-05,92440.0,92438.0,0.01393106]
[1768788677289,7.907e-05,92440.0,92439.0,0.01393106]
[1768788677493,7.907e-05,92440.0,92438.0,0.01393106]
[1768788677977,7.907e-05,92440.0,92429.0,0.01147652]
[1768788677978,7.907e-05,92440.0,92439.0,0.01393106]
[1768788678291,0.00279941,92455.0,92441.0,0.0090963]
[1768788678292,0.00844284,92454.0,92441.0,0.0090963]
[1768788678690,0.010819,92466.0,92447.0,0.0090963]
[1768788678891,0.0931549,92472.0,92452.0,0.0090963]
[1768788679086,0.05920546,92472.0,92456.0,0.0090963]
[1768788679286,0.07002346,92472.0,92460.0,0.0090963]
[1768788679596,0.0974,92479.0,92463.0,0.10119594]
[1768788679796,0.0974,92479.0,92464.0,0.0090963]
[1768788680092,0.010818,92476.0,92465.0,0.10119594]
[1768788680287,0.0974,92479.0,92465.0,0.10119594]
[1768788680489,0.00016222,92480.0,92467.0,0.09209964]
[1768788680692,0.00016222,92480.0,92468.0,0.0090963]
[1768788680987,0.00016222,92480.0,92469.0,0.09209964]
[1768788682485,0.00016222,92480.0,92470.0,0.00927682]
[1768788682685,0.00016222,92480.0,92470.0,0.10264231]
[1768788684913,0.00016222,92480.0,92471.0,0.00927682]
[1768788685105,0.00016222,92480.0,92471.0,0.10264231]
[1768788685506,0.0974,92487.0,92471.0,0.10264231]
[1768788686906,0.010817,92486.0,92471.0,0.10264231]
[1768788687215,0.0974,92487.0,92472.0,0.10264231]
[1768788688021,0.108217,92487.0,92472.0,0.10264231]
[1768788688219,0.0974,92487.0,92472.0,0.10264231]
[1768788688422,0.108217,92487.0,92472.0,0.10264231]
[1768788688619,0.0974,92487.0,92477.0,0.00927682]
[1768788689021,0.09736,92495.0,92477.0,0.00927682]
[1768788689319,0.02344953,92494.0,92477.0,0.00927682]
[1768788689616,0.1825254,92510.0,92477.0,0.00927682]
[1768788689617,0.09736,92502.0,92488.0,0.10264231]
[1768788689917,0.00965935,92507.0,92484.0,0.00927682]
[1768788690117,0.00965935,92506.0,92484.0,0.02284094]
[1768788690317,0.010815,92501.0,92488.0,0.09336549]
[1768788690516,0.010815,92504.0,92488.0,0.10264231]
[1768788690721,0.010814,92507.0,92492.0,0.09336549]
[1768788690904,0.09736,92510.0,92492.0,0.09336549]
[1768788691519,0.010815,92505.0,92492.0,0.09336549]
[1768788691721,0.00965935,92505.0,92486.0,0.00016222]
[1768788691920,0.10004639,92505.0,92486.0,0.00016222]
[1768788692217,0.010815,92501.0,92486.0,0.00016222]
[1768788692421,0.00965935,92504.0,92486.0,0.00016222]
[1768788692626,0.09038704,92503.0,92486.0,0.00016222]
[1768788692824,0.010815,92499.0,92486.0,0.00016222]
[1768788694124,0.010815,92502.0,92486.0,0.00016222]
[1768788694525,0.010815,92500.0,92486.0,0.00016222]
[1768788696224,0.02047435,92498.0,92476.0,0.010818]
[1768788696530,0.00965935,92498.0,92480.0,0.010817]
[1768788696729,0.010815,92500.0,92481.0,0.0949807]
[1768788697028,0.11086139,92503.0,92482.0,0.10418249]
[1768788697421,0.010815,92503.0,92484.0,0.10264231]
[1768788697619,0.010815,92503.0,92485.0,0.10264231]
[1768788697828,0.10859489,92498.0,92481.0,0.1057977]
[1768788698028,0.10859489,92498.0,92481.0,0.11929944]
[1768788698429,0.02022478,92503.0,92481.0,0.11929944]
[1768788698627,0.02022478,92503.0,92483.0,0.010817]
[1768788698842,0.02022478,92503.0,92482.0,0.00943593]
[1768788698843,0.010815,92503.0,92487.0,0.10085619]
[1768788699329,0.10676978,92510.0,92487.0,0.10085619]
[1768788699830,0.010815,92504.0,92487.0,0.10085619]
[1768788700127,0.010815,92502.0,92482.0,0.02025293]
[1768788700930,0.010815,92500.0,92482.0,0.02025293]
[1768788701230,0.00940978,92503.0,92481.0,0.1999027]
[1768788701431,0.010816,92497.0,92481.0,0.18640096]
[1768788701826,0.010816,92497.0,92483.0,0.00016222]
[1768788702031,0.010815,92500.0,92483.0,0.00016222]
[1768788702231,0.02334212,92499.0,92484.0,0.010817]
[1768788702430,0.010815,92503.0,92484.0,0.010817]
[1768788702631,0.010815,92501.0,92483.0,0.00016222]
[1768788702832,0.02334258,92500.0,92483.0,0.00016222]
[1768788703130,0.02334258,92499.0,92483.0,0.00016222]
[1768788703329,0.010815,92501.0,92483.0,0.09158248]
[1768788703519,0.010815,92499.0,92483.0,0.00016222]
[1768788703725,0.02334337,92498.0,92483.0,0.00016222]
[1768788703926,0.00940978,92499.0,92483.0,0.00016222]
[1768788704125,0.02334371,92498.0,92483.0,0.00016222]
[1768788704331,0.00940978,92499.0,92483.0,0.00016222]
[1768788704532,0.02334541,92498.0,92483.0,0.00016222]
[1768788704734,0.00940978,92499.0,92483.0,0.00016222]
[1768788704924,0.02334528,92498.0,92483.0,0.00016222]
[1768788705125,0.010815,92498.0,92483.0,0.00016222]
[1768788706036,0.00940978,92499.0,92483.0,0.00016222]
[1768788706335,0.02334289,92498.0,92484.0,0.11167319]
[1768788706636,0.02334289,92497.0,92484.0,0.11167319]
[1768788706826,0.14600583,92500.0,92484.0,0.11167319]
[1768788707027,0.02334803,92499.0,92484.0,0.10085619]
[1768788707228,0.02334803,92498.0,92484.0,0.10085619]
[1768788707427,0.02334803,92497.0,92484.0,0.09142026]
[1768788707637,0.14600583,92500.0,92484.0,0.09142026]
[1768788707836,0.02335525,92499.0,92484.0,0.09142026]
[1768788708135,0.02335525,92498.0,92484.0,0.09142026]
[1768788708439,0.14600583,92500.0,92483.0,0.00016222]
[1768788708440,0.02335525,92497.0,92485.0,0.11167319]
[1768788708634,0.010814,92507.0,92485.0,0.10085619]
[1768788708834,0.02336396,92506.0,92485.0,0.10085619]
[1768788709034,0.02336396,92505.0,92485.0,0.10085619]
[1768788709231,0.02336396,92504.0,92485.0,0.10085619]
[1768788709430,0.02336396,92503.0,92486.0,0.00943593]
[1768788709642,0.02336396,92502.0,92487.0,0.010817]
[1768788710231,0.02336396,92501.0,92487.0,0.010817]
[1768788710431,0.02336396,92500.0,92487.0,0.010817]
[1768788710627,0.02336396,92499.0,92487.0,0.010817]
[1768788710833,0.00940978,92508.0,92487.0,0.010817]
[1768788710834,0.02336396,92498.0,92487.0,0.010817]
[1768788711032,0.02336396,92497.0,92487.0,0.010817]
[1768788711242,0.02336396,92496.0,92487.0,0.010817]
[1768788711439,0.010815,92504.0,92487.0,0.010817]
[1768788711641,0.02337536,92503.0,92487.0,0.010817]
[1768788711843,0.03419036,92502.0,92486.0,0.010817]
[1768788712040,0.02337536,92501.0,92486.0,0.010817]
[1768788712242,0.04360014,92500.0,92483.0,0.01097922]
[1768788712541,0.02337536,92499.0,92483.0,0.11156166]
[1768788713046,0.010815,92498.0,92483.0,0.00016222]
[1768788713239,0.03238242,92497.0,92483.0,0.00016222]
[1768788713542,0.03238242,92497.0,92452.0,0.01325561]
[1768788713543,0.01982506,92474.0,92452.0,0.01325561]
[1768788713846,0.01982506,92474.0,92454.0,0.01082]
[1768788714642,0.00016222,92473.0,92454.0,0.01082]
[1768788714844,0.010818,92472.0,92452.0,0.02437189]
[1768788715435,0.00016222,92473.0,92456.0,0.01082]
[1768788715840,0.00016222,92473.0,92458.0,0.01082]
[1768788716131,0.00016222,92473.0,92460.0,0.01082]
[1768788716440,0.09736,92479.0,92467.0,0.010819]
[1768788716639,0.01982406,92489.0,92469.0,0.010819]
[1768788716640,0.09736,92485.0,92469.0,0.010819]
[1768788716949,0.01982406,92483.0,92464.0,0.010819]
[1768788717538,0.00900706,92478.0,92457.0,0.01082]
[1768788717738,0.00900706,92477.0,92457.0,0.01082]
[1768788717940,0.00900706,92475.0,92457.0,0.01082]
[1768788718342,0.01982506,92475.0,92457.0,0.01082]
[1768788718544,0.00900706,92475.0,92459.0,0.01082]
[1768788718849,0.09173189,92476.0,92455.0,0.10478214]
[1768788719154,0.09736,92485.0,92466.0,0.010819]
[1768788719446,0.02342595,92484.0,92466.0,0.010819]
[1768788719653,0.09736,92485.0,92466.0,0.010819]
[1768788719847,0.02342595,92484.0,92466.0,0.010819]
[1768788720046,0.09736,92485.0,92466.0,0.010819]
[1768788720350,0.03424298,92484.0,92466.0,0.010819]
[1768788720550,0.010817,92484.0,92466.0,0.010819]
[1768788721246,0.00900706,92481.0,92458.0,0.10478214]
[1768788721453,0.010818,92474.0,92456.0,0.00016222]
[1768788721843,0.10073895,92476.0,92457.0,0.01082]
[1768788722049,0.00900706,92479.0,92459.0,0.01082]
[1768788722250,0.00016222,92476.0,92461.0,0.01082]
[1768788722852,0.00016222,92476.0,92463.0,0.010819]
[1768788723358,0.00016222,92476.0,92457.0,0.00916218]
[1768788723359,0.00016222,92476.0,92457.0,0.10478214]
[1768788723652,0.00016222,92476.0,92460.0,0.09561996]
[1768788723849,0.00016222,92476.0,92466.0,0.010819]
[1768788724050,0.00016222,92476.0,92464.0,0.10478214]
[1768788724444,0.00016222,92476.0,92466.0,0.010819]
[1768788725757,0.00016222,92476.0,92464.0,0.09561996]
[1768788726053,0.00016222,92476.0,92463.0,0.010819]
[1768788726450,0.00016222,92476.0,92465.0,0.010819]
[1768788728956,0.00016222,92476.0,92462.0,0.01082]
[1768788729457,0.00016222,92476.0,92460.0,0.09561996]
[1768788730652,0.00016222,92476.0,92460.0,0.10643996]
[1768788731138,0.00016222,92476.0,92460.0,0.11560214]
[1768788731654,0.00016222,92476.0,92462.0,0.01082]
[1768788732542,0.00016222,92476.0,92462.0,0.10643996]
[1768788733645,0.00016222,92476.0,92464.0,0.010819]
[1768788733845,0.00016222,92476.0,92467.0,0.010819]
[1768788734540,0.00016222,92476.0,92464.0,0.10478214]
[1768788734740,0.00016222,92476.0,92467.0,0.010819]
[1768788735856,0.010816,92496.0,92478.0,0.11560014]
[1768788736048,0.02343412,92495.0,92482.0,0.10478214]
[1768788736248,0.02343412,92494.0,92482.0,0.10478214]
[1768788736448,0.02343412,92493.0,92482.0,0.09561996]
[1768788736649,0.02343412,92492.0,92477.0,0.00916218]
[1768788736856,0.010816,92490.0,92472.0,0.00916218]
[1768788737045,0.10073895,92496.0,92469.0,0.108179]
[1768788737046,0.010816,92493.0,92475.0,0.10494436]
[1768788737245,0.02344469,92492.0,92475.0,0.10494436]
[1768788737446,0.03426069,92491.0,92475.0,0.00016222]
[1768788737753,0.02344469,92490.0,92475.0,0.00016222]
[1768788738546,0.02344469,92489.0,92475.0,0.01098022]
[1768788738763,0.010816,92494.0,92475.0,0.01098022]
[1768788738950,0.010816,92492.0,92475.0,0.00016222]
[1768788739148,0.02344424,92491.0,92475.0,0.00016222]
[1768788740350,0.02344424,92490.0,92475.0,0.00016222]
[1768788740549,0.02344424,92489.0,92476.0,0.010818]
[1768788740750,0.010816,92493.0,92475.0,0.00016222]
[1768788740950,0.02345043,92492.0,92475.0,0.00016222]
[1768788741152,0.02345043,92491.0,92475.0,0.00016222]
[1768788741450,0.02345043,92490.0,92476.0,0.010818]
[1768788741650,0.02345043,92489.0,92476.0,0.010818]
[1768788741850,0.02345043,92488.0,92476.0,0.010818]
[1768788742050,0.010816,92493.0,92476.0,0.010818]
[1768788742355,0.01329376,92492.0,92485.0,0.09561996]
[1768788742553,0.108175,92500.0,92485.0,0.09561996]
[1768788743661,0.09736,92500.0,92485.0,0.10145436]
[1768788743961,0.09736,92500.0,92485.0,0.11227136]
[1768788744259,0.09736,92500.0,92485.0,0.10145436]
[1768788744857,0.010815,92499.0,92485.0,0.09561996]
[1768788745251,0.010815,92499.0,92481.0,0.10301822]
[1768788745451,0.010816,92497.0,92481.0,0.09220122]
[1768788745860,0.10657602,92500.0,92481.0,0.09220122]
[1768788746056,0.010816,92495.0,92481.0,0.09220122]
[1768788746264,0.010815,92498.0,92481.0,0.09220122]
[1768788746747,0.00921602,92499.0,92481.0,0.10301822]
[1768788747563,0.02003102,92499.0,92481.0,0.10301822]
[1768788747766,0.010815,92499.0,92481.0,0.10894346]
[1768788747952,0.02003102,92499.0,92481.0,0.10301822]
[1768788748464,0.09736,92500.0,92483.0,0.010817]
[1768788748653,0.09736,92500.0,92483.0,0.10301822]
[1768788749563,0.09736,92500.0,92485.0,0.010817]
[1768788750863,0.010815,92503.0,92485.0,0.010817]
[1768788751064,0.09736,92502.0,92485.0,0.10301822]
[1768788751265,0.00921602,92499.0,92482.0,0.010817]
[1768788751458,0.10657602,92502.0,92482.0,0.010817]
[1768788751660,0.00921602,92501.0,92482.0,0.010817]
[1768788752574,0.010815,92500.0,92482.0,0.010817]
[1768788752761,0.02003102,92501.0,92484.0,0.010817]
[1768788753168,0.02003102,92501.0,92481.0,0.010817]
[1768788753668,0.010815,92499.0,92481.0,0.010817]
[1768788754358,0.00921602,92501.0,92483.0,0.010817]
[1768788754554,0.02333939,92500.0,92485.0,0.10868811]
[1768788754763,0.02333939,92499.0,92485.0,0.10868811]
[1768788754965,0.02333939,92498.0,92485.0,0.10868811]
[1768788755168,0.02333939,92497.0,92485.0,0.10868811]
[1768788755353,0.02333939,92496.0,92487.0,0.010817]
[1768788755560,0.02333939,92495.0,92487.0,0.010817]
[1768788755760,0.02333939,92494.0,92484.0,0.010817]
[1768788756063,0.010815,92499.0,92483.0,0.010817]
[1768788756263,0.02333821,92498.0,92483.0,0.010817]
[1768788756464,0.02333821,92497.0,92485.0,0.010817]
[1768788756664,0.02333821,92496.0,92485.0,0.010817]
[1768788756866,0.02333821,92495.0,92485.0,0.010817]
[1768788757064,0.02333821,92494.0,92485.0,0.010817]
[1768788757264,0.00921602,92501.0,92487.0,0.010817]
[1768788757467,0.108175,92502.0,92479.0,0.09736]
[1768788757468,0.02333874,92500.0,92489.0,0.1087172]
[1768788757669,0.02333874,92499.0,92490.0,0.0979012]
[1768788757865,0.02333874,92498.0,92490.0,0.0979012]
[1768788758071,0.02333874,92497.0,92486.0,0.010817]
[1768788758271,0.02333874,92496.0,92486.0,0.010817]
[1768788758468,0.010815,92503.0,92488.0,0.11378735]
[1768788759063,0.00237828,92504.0,92488.0,0.11378735]
[1768788759257,0.00237828,92504.0,92489.0,0.00580267]
[1768788759567,0.09736,92508.0,92498.0,0.10307304]
[1768788759961,0.09736,92508.0,92498.0,0.09727037]
[1768788760364,0.010815,92505.0,92494.0,0.00016222]
[1768788760560,0.00969601,92505.0,92483.0,0.09727037]
[1768788760762,0.00969601,92499.0,92479.0,0.09727133]
[1768788760972,0.00969601,92499.0,92464.0,3e-07]
[1768788760973,0.010819,92469.0,92464.0,3e-07]
[1768788761163,0.00969601,92466.0,92449.0,0.0023797]
[1768788761362,0.10705601,92472.0,92450.0,0.010821]
[1768788761564,0.00969601,92491.0,92449.0,0.11457113]
[1768788761865,0.108176,92490.0,92466.0,0.10808937]
[1768788762065,0.108176,92490.0,92452.0,0.00016222]
[1768788762066,0.09236261,92481.0,92453.0,0.09727037]
[1768788762367,0.09236261,92481.0,92437.0,0.09727037]
[1768788762368,0.00969601,92462.0,92437.0,0.09727037]
[1768788762559,0.00969601,92462.0,92442.0,0.010822]
[1768788762760,0.00969601,92462.0,92444.0,0.08232847]
[1768788763072,0.00969601,92467.0,92447.0,0.08232847]
[1768788763271,0.010818,92473.0,92451.0,0.09727037]
[1768788763466,0.00016222,92466.0,92455.0,0.01082]
[1768788763667,0.00016222,92466.0,92458.0,0.01082]
[1768788763869,0.00016222,92466.0,92441.0,0.010822]
[1768788763870,2.2e-07,92466.0,92463.0,0.010819]
[1768788765276,2.2e-07,92466.0,92460.0,0.01082]
[1768788765475,2.2e-07,92466.0,92462.0,0.01082]
[1768788765664,2.2e-07,92466.0,92458.0,0.09314847]
[1768788765865,2.2e-07,92466.0,92460.0,0.01082]
[1768788766268,2.2e-07,92466.0,92461.0,0.08232847]
[1768788766566,2.2e-07,92466.0,92462.0,0.01082]
[1768788766968,2.2e-07,92466.0,92458.0,0.01082]
[1768788767364,2.2e-07,92466.0,92460.0,0.08232847]
[1768788767571,0.00969623,92466.0,92455.0,0.08232847]
[1768788767765,0.00969601,92461.0,92443.0,0.010822]
[1768788767971,0.00969601,92461.0,92445.0,0.08232847]
[1768788768278,0.00969601,92461.0,92447.0,0.08232847]
[1768788768463,0.00969601,92461.0,92449.0,0.08232847]
[1768788768663,0.00969601,92461.0,92447.0,0.08232847]
[1768788768868,0.09736,92465.0,92447.0,0.08232847]
[1768788769069,0.09736,92465.0,92444.0,0.09727037]
[1768788769266,0.00969601,92459.0,92439.0,0.09736]
[1768788769470,0.00969601,92458.0,92438.0,0.010822]
[1768788769688,0.00731722,92456.0,92438.0,0.08232847]
[1768788769873,0.00731722,92456.0,92434.0,0.01474144]
[1768788770065,0.00731722,92456.0,92440.0,0.010822]
[1768788770482,0.09236261,92457.0,92440.0,0.010822]
[1768788770675,0.09236261,92457.0,92436.0,0.010823]
[1768788770975,0.01082,92459.0,92438.0,0.09727037]
[1768788771177,0.01082,92463.0,92440.0,0.10809237]
[1768788771375,0.01082,92463.0,92440.0,0.10985971]
[1768788771782,0.01082,92463.0,92444.0,0.0001]
[1768788772283,0.00969601,92464.0,92445.0,0.010822]
[1768788776783,0.00969601,92464.0,92444.0,0.0001]
[1768788776983,2.2e-07,92466.0,92452.0,0.010821]
[1768788777197,2.2e-07,92466.0,92458.0,0.09971301]
[1768788777380,2.2e-07,92466.0,92461.0,0.08232847]
[1768788777581,0.00221719,92469.0,92459.0,0.08232847]
[1768788777889,0.00221719,92469.0,92464.0,0.0023793]
[1768788778282,0.00221719,92469.0,92451.0,0.010821]
[1768788778484,0.01149915,92469.0,92455.0,0.08232847]
[1768788778790,0.00237941,92469.0,92453.0,0.010821]
[1768788778986,0.00237941,92469.0,92454.0,0.08232847]
[1768788779287,0.00237941,92469.0,92456.0,0.08232847]
[1768788779479,0.00237941,92469.0,92455.0,0.01082]
[1768788779676,0.00237941,92469.0,92458.0,0.08232847]
[1768788779874,0.00237941,92469.0,92459.0,0.08232847]
[1768788780074,0.00237941,92469.0,92458.0,0.08232847]
[1768788780280,0.00237941,92469.0,92456.0,0.08232847]
[1768788780281,0.01166137,92469.0,92456.0,0.08232847]
[1768788780489,0.00237941,92469.0,92456.0,0.08232847]
[1768788780788,0.00237941,92469.0,92457.0,0.01082]
[1768788780977,0.00237941,92469.0,92459.0,0.09971301]
[1768788781384,0.00237941,92469.0,92459.0,0.18204148]
[1768788782182,0.00237941,92469.0,92459.0,0.08232847]
[1768788783477,0.00237941,92469.0,92457.0,0.01082]
[1768788783689,0.00237941,92469.0,92457.0,0.09314847]
[1768788783989,0.00237941,92469.0,92459.0,0.08232847]
[1768788784489,0.00237941,92469.0,92460.0,0.08232847]
[1768788784680,0.00237941,92469.0,92459.0,0.08232847]
[1768788785187,0.00237941,92469.0,92460.0,0.08232847]
[1768788785678,0.00237941,92469.0,92461.0,0.08232847]
[1768788785977,0.00237941,92469.0,92460.0,0.08232847]
[1768788786178,0.010817,92483.0,92465.0,0.010819]
[1768788786374,0.0974,92479.0,92467.0,0.010819]
[1768788786575,0.0974,92479.0,92469.0,0.08232847]
[1768788786779,0.0974,92479.0,92467.0,0.08232847]
[1768788787186,0.0974,92479.0,92469.0,0.08232847]
[1768788787584,0.0974,92479.0,92470.0,0.08232847]
[1768788787783,0.0974,92479.0,92467.0,0.08232847]
[1768788788188,0.0974,92479.0,92469.0,0.08232847]
[1768788788383,0.0974,92479.0,92463.0,0.11461177]
[1768788788384,0.06321778,92480.0,92467.0,0.08232847]
[1768788788583,0.10569214,92478.0,92457.0,0.01082]
[1768788788792,0.00928196,92477.0,92462.0,0.08232847]
[1768788788978,0.14611169,92470.0,92462.0,0.08232847]
[1768788789180,0.14611169,92470.0,92466.0,0.08232847]
[1768788789490,0.010818,92475.0,92457.0,0.01082]
[1768788789790,0.02009996,92475.0,92457.0,0.01082]
[1768788789992,0.00928196,92474.0,92457.0,0.01082]
[1768788790192,0.14611169,92470.0,92456.0,0.09971301]
[1768788790393,0.14611169,92470.0,92455.0,0.00016222]
[1768788790595,0.14611169,92470.0,92456.0,0.01082]
[1768788791186,0.14611169,92470.0,92455.0,0.00016222]
[1768788791489,0.00928196,92469.0,92455.0,0.00016222]
[1768788791893,0.14611169,92470.0,92455.0,0.00016222]
[1768788792988,0.10569214,92469.0,92455.0,0.00016222]
[1768788793194,0.00928196,92468.0,92455.0,0.00016222]
[1768788793394,0.02010096,92468.0,92455.0,0.00016222]
[1768788793593,0.00928196,92468.0,92455.0,0.00016222]
[1768788793791,0.00928196,92463.0,92446.0,0.010821]
[1768788793994,0.14611169,92460.0,92446.0,0.010821]
[1768788794298,0.00928196,92463.0,92446.0,0.010821]
[1768788794600,0.0974,92469.0,92446.0,0.010821]
[1768788794601,0.00928196,92467.0,92450.0,0.010821]
[1768788794997,0.0974,92469.0,92452.0,0.010821]
[1768788795194,0.0974,92469.0,92452.0,0.10141454]
[1768788795396,0.0974,92469.0,92452.0,0.11223554]
[1768788795699,0.0974,92469.0,92454.0,0.010821]
[1768788795901,0.0974,92469.0,92452.0,0.10141454]
[1768788796091,0.0974,92469.0,92456.0,0.01082]
[1768788796696,0.0974,92469.0,92455.0,0.01082]
[1768788797894,0.0974,92469.0,92457.0,0.01082]
[1768788798201,0.02434544,92468.0,92459.0,0.01082]
[1768788798396,0.02434544,92467.0,92459.0,0.01082]
[1768788798598,0.02434544,92466.0,92459.0,0.01082]
[1768788798905,0.02434544,92465.0,92461.0,0.01082]
[1768788799102,0.02434544,92464.0,92458.0,0.01082]
[1768788799304,0.00016222,92471.0,92464.0,0.010819]
[1768788799603,0.0974,92477.0,92464.0,0.10130015]
[1768788799797,0.0974,92477.0,92465.0,0.010819]
[1768788800901,0.18922951,92480.0,92467.0,0.010819]
[1768788801209,0.0974,92479.0,92467.0,0.010819]
[1768788802602,0.0974,92479.0,92460.0,0.24741184]
[1768788803407,0.0974,92479.0,92460.0,0.24757406]
[1768788804208,0.0974,92479.0,92466.0,0.010819]
[1768788804503,0.0974,92479.0,92460.0,0.10146237]
[1768788804807,0.00926726,92477.0,92460.0,0.15709391]
[1768788805003,0.00926726,92477.0,92462.0,0.01082]
[1768788805306,0.00926726,92476.0,92462.0,0.01082]
[1768788805603,0.14611169,92472.0,92460.0,0.00016222]
[1768788805905,0.14611169,92472.0,92451.0,0.0016177]
[1768788805906,0.00926726,92464.0,92444.0,0.0975]
[1768788806108,0.15537895,92461.0,92446.0,0.010821]
[1768788806405,0.00926726,92461.0,92446.0,0.010821]
[1768788806999,0.11504054,92459.0,92444.0,0.0001]
[1768788807208,0.00926726,92456.0,92441.0,0.010822]
[1768788807601,0.14611169,92451.0,92441.0,0.010822]
[1768788807806,0.14611169,92451.0,92438.0,0.010822]
[1768788808111,0.00926726,92453.0,92440.0,0.010822]
[1768788808709,0.00926726,92452.0,92435.0,0.010823]
[1768788808910,0.00926726,92452.0,92437.0,0.010822]
[1768788809111,0.010821,92451.0,92434.0,0.010823]
[1768788810298,0.02008826,92451.0,92434.0,0.010823]
[1768788810500,0.00926726,92451.0,92434.0,0.010823]
[1768788811511,0.14611169,92450.0,92438.0,0.010822]
[1768788812104,0.14611169,92450.0,92435.0,0.010823]
[1768788812313,0.010821,92451.0,92435.0,0.010823]
[1768788812608,0.010821,92449.0,92432.0,0.11635997]
[1768788812811,0.010821,92449.0,92432.0,0.02457995]
[1768788813014,0.00926726,92448.0,92432.0,0.02457995]
[1768788813197,0.09495328,92449.0,92432.0,0.01375695]
[1768788813403,0.10577428,92454.0,92439.0,0.14611169]
[1768788813603,0.14611169,92450.0,92434.0,0.010823]
[1768788813904,0.010822,92443.0,92429.0,0.00238022]
[1768788814108,0.14611169,92441.0,92429.0,0.00238022]
[1768788814804,0.14611169,92440.0,92429.0,0.00238022]
[1768788815710,0.00926726,92443.0,92429.0,0.00238022]
[1768788815904,0.14611169,92440.0,92429.0,0.00238022]
[1768788816503,0.00926726,92443.0,92429.0,0.00238022]
[1768788816809,0.14611169,92440.0,92429.0,0.00238022]
[1768788817008,0.00926726,92443.0,92430.0,0.010823]
[1768788817208,0.14611169,92440.0,92429.0,0.00238022]
[1768788817398,0.00926726,92437.0,92424.0,0.00238033]
[1768788817602,0.00926726,92435.0,92424.0,0.00238033]
[1768788819613,0.00016222,92439.0,92424.0,0.00638411]
[1768788819911,0.00016222,92439.0,92424.0,0.0964934]
[1768788820107,0.00016222,92439.0,92424.0,0.00238033]